bitfinex-derivatives/quotes_ETHF0:USTF0_20250107
["timestamp","ask_amount","ask_price","bid_price","bid_amount"]
[1736262824267,3.2078,3536.5,3535.9,0.2832]
[1736262824567,3.49064,3536.5,3535.9,0.2832]
[1736262824962,3.2078,3536.5,3535.9,0.2832]
[1736262825161,3.2078,3536.9,3535.9,0.56608]
[1736262825461,3.2078,3536.5,3535.9,0.2832]
[1736262825663,3.2078,3536.9,3536.0,3.21315799]
[1736262825856,3.2078,3536.9,3536.8,0.28281]
[1736262826062,3.2078,3538.3,3537.9,0.28272]
[1736262826265,3.2078,3538.3,3536.8,3.49635799]
[1736262826465,3.2078,3538.3,3537.6,0.28274]
[1736262826675,3.2078,3538.8,3537.2,8.62213414]
[1736262826859,3.2078,3538.8,3538.7,40.8]
[1736262827065,0.496,3539.5,3538.7,40.8]
[1736262827066,3.2078,3539.2,3538.7,40.8]
[1736262827371,3.2078,3538.8,3538.7,40.8]
[1736262827864,3.2078,3539.2,3538.7,40.8]
[1736262828072,3.49045,3538.8,3538.7,40.8]
[1736262828569,3.2078,3538.8,3538.7,40.8]
[1736262828760,3.2078,3539.3,3538.7,40.8]
[1736262829170,0.496,3539.5,3539.2,0.28262]
[1736262829370,0.496,3539.5,3538.8,0.28265]
[1736262829564,0.51256,3539.6,3538.7,44.0078]
[1736262829868,3.2078,3540.7,3539.5,3.2078]
[1736262830069,3.2078,3541.4,3540.0,3.2078]
[1736262830472,3.2078,3541.4,3541.3,40.8]
[1736262831264,3.2078,3541.8,3541.3,40.8]
[1736262831867,3.2078,3541.8,3540.2,0.70634]
[1736262831868,3.2078,3541.4,3539.8,3.2078]
[1736262832063,3.2078,3541.4,3539.7,5.50118857]
[1736262832064,3.2078,3541.2,3539.7,5.50118857]
[1736262832263,3.2078,3541.2,3539.7,8.70898857]
[1736262832568,3.2078,3541.2,3540.5,40.8]
[1736262833269,3.49026,3541.2,3540.5,40.8]
[1736262833476,3.2078,3541.2,3540.5,40.8]
[1736262833676,0.2825,3540.7,3540.1,0.2832]
[1736262833878,3.2078,3540.8,3539.8,0.2832]
[1736262834084,6.15887,3542.6,3540.7,40.8]
[1736262834085,3.2078,3541.3,3540.7,40.8]
[1736262834374,3.2078,3540.9,3540.7,40.8]
[1736262834569,3.2078,3540.9,3539.9,2.98001041]
[1736262834769,3.2078,3540.5,3540.0,0.28255]
[1736262834967,3.2078,3540.1,3539.9,0.28256]
[1736262835163,3.2078,3540.7,3540.6,0.2825]
[1736262835366,0.28244,3541.4,3540.4,0.28252]
[1736262835674,3.2078,3541.0,3540.3,0.28253]
[1736262835974,3.2078,3540.5,3539.9,0.2824]
[1736262836173,0.706,3542.0,3539.6,0.2832]
[1736262836174,3.2078,3540.1,3539.6,0.2832]
[1736262836373,3.2078,3539.7,3539.4,0.2832]
[1736262836871,8.2078,3539.7,3538.6,40.8]
[1736262837070,3.2078,3538.7,3537.5,8.65763038]
[1736262837274,3.49051,3538.0,3537.5,8.65763038]
[1736262837473,3.49051,3538.0,3537.8,47.29322278]
[1736262837670,3.49051,3538.0,3537.8,6.49322278]
[1736262838072,3.49051,3538.0,3537.9,45.05942383]
[1736262838267,3.49051,3538.0,3537.9,40.8]
[1736262838474,3.2078,3538.0,3537.9,40.8]
[1736262838676,0.98953,3537.9,3536.5,0.2832]
[1736262838980,3.2078,3536.6,3536.2,0.2832]
[1736262839178,3.2078,3536.6,3535.4,0.2832]
[1736262839380,3.2078,3536.0,3535.4,0.2832]
[1736262839577,3.2078,3536.2,3535.4,0.2832]
[1736262839778,3.2078,3536.2,3536.1,40.8]
[1736262840783,3.2078,3536.2,3536.1,41.08286]
[1736262840984,3.2078,3537.0,3536.1,48.88699747]
[1736262841278,5.50118857,3539.3,3537.3,0.28277]
[1736262841279,3.2078,3537.9,3537.3,0.28277]
[1736262841479,3.2078,3537.9,3537.0,0.28279]
[1736262841480,3.49052,3537.9,3537.0,0.28279]
[1736262841688,3.2078,3537.4,3536.4,3.2078]
[1736262841883,3.2078,3536.5,3536.1,40.8]
[1736262842183,3.2078,3536.5,3535.3,0.2832]
[1736262842380,3.2078,3535.6,3535.3,0.2832]
[1736262842681,0.28292,3535.5,3534.5,0.56619]
[1736262842885,3.2078,3534.9,3534.6,0.2832]
[1736262843176,3.2078,3535.1,3534.6,3.32007834]
[1736262843381,3.49078,3534.7,3534.6,3.03687834]
[1736262843582,3.49078,3534.7,3533.5,4.25942383]
[1736262843583,0.28298,3534.6,3533.5,4.25942383]
[1736262843775,0.70735,3535.2,3533.5,4.25942383]
[1736262843776,3.49083,3534.0,3533.5,4.25942383]
[1736262843975,0.28303,3534.0,3533.9,3.13477499]
[1736262844278,0.28303,3534.0,3532.3,0.2832]
[1736262844279,8.2078,3534.0,3532.3,0.2832]
[1736262844576,8.2078,3534.0,3532.2,4.25942383]
[1736262844577,3.2078,3532.4,3532.2,4.25942383]
[1736262845283,3.2078,3532.8,3532.6,0.28314]
[1736262845484,3.49087,3533.5,3532.3,3.5534687]
[1736262845682,3.2078,3533.2,3532.3,3.2702987]
[1736262845985,3.2078,3533.2,3532.7,3.2702987]
[1736262846178,3.2078,3533.2,3532.3,3.2702987]
[1736262846481,3.2078,3533.2,3532.6,0.28314]
[1736262846682,3.2078,3534.0,3533.0,3.2078]
[1736262846880,3.2078,3534.4,3533.9,40.8]
[1736262847083,3.49083,3534.0,3533.9,40.8]
[1736262847380,3.2078,3534.0,3533.9,40.8]
[1736262848186,3.2078,3534.4,3533.9,40.8]
[1736262848691,3.2078,3534.0,3533.9,40.8]
[1736262849387,3.49083,3534.0,3533.9,40.8]
[1736262849580,3.2078,3534.0,3533.9,40.8]
[1736262849784,3.49083,3534.0,3533.9,40.8]
[1736262849981,3.2078,3534.0,3533.9,40.8]
[1736262850282,3.2078,3534.0,3533.9,41.08304]
[1736262850484,3.2078,3534.4,3533.9,40.8]
[1736262850986,3.2078,3534.0,3533.9,40.8]
[1736262851381,3.49083,3534.0,3533.9,40.8]
[1736262851577,0.28313,3532.8,3531.0,5.50118857]
[1736262851780,3.2078,3531.8,3531.1,0.05663957]
[1736262851978,3.49106,3531.2,3531.1,0.05663957]
[1736262852689,0.496,3531.6,3531.1,0.05663957]
[1736262852690,0.496,3531.6,3531.2,0.28326]
[1736262852877,0.496,3531.6,3531.1,40.85663957]
[1736262853081,3.2078,3531.7,3531.1,41.13989957]
[1736262853082,3.2078,3531.2,3531.1,41.13989957]
[1736262853387,3.7038,3532.4,3531.2,3.12432066]
[1736262853577,3.7038,3533.1,3532.3,0.28316]
[1736262853778,3.7038,3533.1,3531.7,3.2078]
[1736262853984,3.7038,3533.1,3531.6,5.50118857]
[1736262853985,3.2078,3532.9,3532.4,3.21862895]
[1736262854176,3.2078,3532.5,3532.0,0.28319]
[1736262854380,3.2078,3532.1,3531.8,0.2832]
[1736262854587,3.2078,3532.1,3531.6,0.2832]
[1736262854776,0.496,3533.1,3531.2,2.7191]
[1736262854777,3.2078,3531.7,3531.2,2.7191]
[1736262854981,3.2078,3531.3,3531.2,0.2832]
[1736262855176,5.50118857,3533.7,3531.2,0.2832]
[1736262855177,3.2078,3531.8,3531.2,0.2832]
[1736262855585,3.2078,3531.9,3531.2,0.2832]
[1736262855783,3.2078,3531.9,3531.5,0.28322]
[1736262855982,3.2078,3531.9,3531.2,0.2832]
[1736262856489,3.2078,3531.5,3531.2,0.2832]
[1736262856683,0.28326,3531.2,3531.1,40.8]
[1736262856883,3.2078,3531.5,3528.6,5.50118857]
[1736262856884,8.2078,3531.5,3528.6,5.50118857]
[1736262857079,3.2078,3529.7,3528.7,0.28345]
[1736262857287,3.2078,3529.3,3528.8,3.2243355]
[1736262857494,3.2078,3528.9,3528.2,2.7846]
[1736262857686,3.2078,3529.0,3528.2,2.7846]
[1736262857889,3.2078,3528.6,3527.4,8.6005]
[1736262858093,3.2078,3528.6,3527.5,0.28355]
[1736262858390,3.2078,3529.0,3528.3,40.8]
[1736262858579,3.2078,3529.0,3528.6,5.50118857]
[1736262858780,3.2078,3531.0,3528.6,8.70898857]
[1736262858987,3.2078,3531.0,3529.4,8.70898857]
[1736262859185,3.2078,3530.6,3530.2,0.28333]
[1736262859386,3.2078,3530.3,3530.0,5.50118857]
[1736262859595,3.2078,3531.3,3530.0,5.50118857]
[1736262859885,3.2078,3530.9,3529.5,2.5622]
[1736262860084,0.496,3531.5,3529.5,2.5622]
[1736262860085,3.2078,3529.6,3529.5,2.5622]
[1736262860282,3.2078,3529.6,3528.4,3.4918]
[1736262860591,5.50118857,3531.3,3528.4,3.4918]
[1736262860592,3.2078,3530.0,3529.3,3.24942261]
[1736262860782,3.2078,3530.0,3529.5,40.8]
[1736262860982,3.2078,3530.4,3529.5,40.8]
[1736262861188,0.496,3531.2,3531.1,0.28326]
[1736262861386,3.7038,3531.9,3530.6,5.50118857]
[1736262861588,3.7038,3532.4,3531.6,0.28322]
[1736262861792,3.2078,3533.0,3532.3,40.8]
[1736262861988,3.2078,3532.5,3532.3,40.8]
[1736262862399,0.28316,3532.4,3532.3,40.8]
[1736262862595,8.2078,3532.5,3530.5,0.2832]
[1736262862887,3.2078,3532.0,3530.8,2.99269912]
[1736262863296,3.2078,3533.0,3532.2,0.28317]
[1736262863590,3.2078,3533.0,3532.6,0.28314]
[1736262863794,3.2078,3533.0,3531.8,5.50118857]
[1736262863983,4.851,3536.3,3531.3,6.46482]
[1736262863984,3.7038,3533.6,3532.4,8.70898857]
[1736262864199,3.7038,3533.6,3532.7,0.28908777]
[1736262864382,3.7038,3533.6,3532.5,0.2832]
[1736262864587,0.496,3533.6,3532.9,3.2078]
[1736262864788,0.496,3533.6,3533.2,0.28309]
[1736262865088,0.496,3534.1,3533.3,2.95129429]
[1736262865287,3.7038,3535.2,3534.7,0.28297]
[1736262865485,3.7038,3535.2,3533.7,0.70763]
[1736262865486,3.7038,3535.2,3533.8,0.28304]
[1736262865690,3.7038,3535.2,3534.5,0.28299]
[1736262865882,0.496,3535.2,3534.8,40.8]
[1736262866084,5.50118857,3536.1,3533.7,2.5489]
[1736262866085,3.2078,3534.9,3533.7,2.5489]
[1736262866286,3.2078,3533.8,3532.4,5.50118857]
[1736262866486,3.2078,3533.8,3532.8,0.28312]
[1736262866687,3.2078,3533.8,3532.4,5.50118857]
[1736262866885,3.7038,3534.7,3532.6,3.2078]
[1736262867087,3.2078,3534.6,3534.0,3.2078]
[1736262867393,3.2078,3534.1,3533.8,40.8]
[1736262867791,3.7038,3534.7,3533.8,40.8]
[1736262868095,3.2078,3534.3,3533.8,40.8]
[1736262868292,3.7038,3534.7,3533.8,40.8]
[1736262868486,3.2078,3534.3,3533.8,40.8]
[1736262868791,0.28307,3533.6,3532.7,2.5387]
[1736262868983,3.2078,3533.2,3532.7,2.5387]
[1736262869183,3.2078,3532.8,3532.5,0.2832]
[1736262869391,3.2078,3532.8,3531.9,0.2832]
[1736262869699,3.2078,3532.4,3532.0,40.8]
[1736262870198,0.28318,3532.1,3532.0,40.8]
[1736262870398,0.28317,3532.3,3531.4,0.2832]
[1736262870596,3.2078,3531.6,3530.8,0.2832]
[1736262870797,3.2078,3530.9,3530.7,0.2832]
[1736262871097,3.2078,3530.9,3529.8,3.2078]
[1736262871299,3.2078,3530.9,3530.0,0.284]
[1736262871489,3.2078,3530.9,3530.1,3.2078]
[1736262871798,3.2078,3530.9,3530.6,0.2833]
[1736262872006,3.2078,3530.9,3530.4,0.28331]
[1736262872186,3.2078,3530.9,3530.8,0.28329]
[1736262872391,0.496,3531.5,3530.8,0.28328]
[1736262872392,3.2078,3531.4,3530.8,0.28328]
[1736262872591,3.2078,3531.4,3531.1,0.28326]
[1736262872899,3.2078,3533.0,3531.3,8.70898857]
[1736262873086,3.2078,3533.4,3532.6,3.2078]
[1736262873289,3.2078,3533.4,3532.5,5.50118857]
[1736262873290,3.2078,3533.8,3532.7,0.2832]
[1736262873599,3.2078,3534.1,3533.1,5.50118857]
[1736262873891,3.2078,3533.2,3532.7,0.2832]
[1736262874087,3.2078,3532.8,3532.7,0.2832]
[1736262874296,3.2078,3533.0,3532.7,0.2832]
[1736262874486,3.2078,3533.4,3532.6,0.28314]
[1736262874694,3.2078,3534.2,3533.6,0.28306]
[1736262874990,0.28308,3533.5,3532.7,2.88596598]
[1736262875192,3.2078,3533.0,3531.6,0.2832]
[1736262875494,3.2078,3531.7,3529.6,3.2078]
[1736262875698,3.2078,3530.8,3530.4,0.2832]
[1736262875896,0.28334,3530.2,3529.6,3.18425845]
[1736262876201,3.2078,3529.7,3529.3,0.284]
[1736262876389,3.2078,3529.7,3529.2,0.2832]
[1736262876594,3.2078,3529.3,3528.7,0.284]
[1736262876893,1.41604,3531.9,3528.0,8.492]
[1736262876894,3.49124,3528.9,3528.1,0.284]
[1736262877086,3.2078,3528.5,3528.1,0.284]
[1736262877294,3.2078,3528.5,3528.4,40.8]
[1736262877493,3.2078,3529.4,3528.4,40.8]
[1736262877695,3.2078,3529.4,3528.8,0.28344]
[1736262877991,3.2078,3529.8,3528.4,40.8]
[1736262878294,3.2078,3530.2,3529.3,3.2078]
[1736262878500,3.2078,3530.2,3528.7,6.20981857]
[1736262878501,3.2078,3530.2,3528.8,3.2078]
[1736262878699,3.2078,3530.2,3529.4,8.55574427]
[1736262879000,3.2078,3530.8,3529.8,3.2078]
[1736262879191,3.2078,3530.8,3529.5,5.6670557]
[1736262879494,3.2078,3530.8,3530.1,0.28334]
[1736262879801,3.2078,3531.3,3531.0,0.28326]
[1736262880096,3.2078,3531.4,3530.7,3.2078]
[1736262880298,5.50118857,3532.8,3531.1,3.11797294]
[1736262880492,5.50118857,3532.8,3530.2,0.2832]
[1736262880493,3.2078,3531.2,3530.4,0.28332]
[1736262880702,3.2078,3530.8,3530.4,0.28332]
[1736262881098,3.2078,3530.8,3530.4,0.28331]
[1736262881399,3.2078,3531.6,3530.7,44.0078]
[1736262881699,3.2078,3532.1,3530.7,40.8]
[1736262881999,3.2078,3531.3,3530.8,3.02671649]
[1736262882393,3.2078,3530.9,3530.7,40.8]
[1736262883100,5.50118857,3532.8,3530.7,40.8]
[1736262883101,3.2078,3531.9,3530.9,0.28327]
[1736262883301,3.2078,3531.9,3530.5,3.2078]
[1736262883496,3.2078,3530.6,3530.2,0.2832]
[1736262883696,3.2078,3530.6,3528.8,3.2078]
[1736262884001,3.2078,3529.7,3528.9,0.284]
[1736262884203,3.2078,3530.2,3528.9,0.284]
[1736262884399,3.2078,3530.2,3528.9,3.34317622]
[1736262884707,3.2078,3529.9,3528.9,0.284]
[1736262884903,3.2078,3529.9,3529.8,0.28337]
[1736262885095,3.2078,3531.9,3529.7,5.50118857]
[1736262885401,3.2078,3531.2,3530.0,3.2078]
[1736262885603,0.28327,3531.0,3530.0,0.28335]
[1736262885796,0.28328,3530.9,3529.9,3.49115]
[1736262885991,3.2078,3531.6,3530.1,3.22362818]
[1736262886203,3.2078,3531.6,3530.7,0.28329]
[1736262886414,3.2078,3531.6,3529.9,3.2078]
[1736262886415,3.2078,3531.0,3529.9,3.2078]
[1736262886716,5.3404,3532.5,3528.9,0.284]
[1736262886717,0.28337,3529.9,3529.3,3.2078]
[1736262886898,0.28337,3529.9,3528.9,0.56743]
[1736262886899,3.2078,3529.8,3528.9,0.284]
[1736262887098,0.70827,3530.7,3528.9,0.284]
[1736262887099,3.2078,3530.2,3528.9,0.284]
[1736262887294,0.28339,3529.5,3529.4,40.8]
[1736262887501,3.2078,3529.8,3529.4,40.8]
[1736262887695,0.28339,3529.6,3529.4,40.8]
[1736262887900,3.2078,3529.8,3529.4,40.8]
[1736262888199,0.28333,3530.4,3529.5,0.28339]
[1736262888400,3.2078,3530.5,3529.5,0.28339]
[1736262888401,3.49112,3530.5,3529.6,0.28338]
[1736262888594,3.2078,3530.5,3529.4,40.8]
[1736262889102,3.2078,3531.0,3529.5,3.1682136]
[1736262889302,3.2078,3531.9,3530.5,3.2078]
[1736262889512,3.2078,3531.9,3531.2,0.28325]
[1736262889801,3.05199178,3532.7,3531.1,3.2078]
[1736262890007,3.05199178,3532.7,3532.3,0.28317]
[1736262890199,3.05199178,3532.7,3532.6,0.28314]
[1736262890396,3.05199178,3532.7,3532.3,3.2078]
[1736262890397,5.11624188,3533.2,3532.4,3.1721096]
[1736262890596,3.40595026,3533.6,3533.5,0.28307]
[1736262890901,9.6277737,3534.4,3534.3,0.28301]
[1736262891099,4.8160037,3534.4,3534.3,9.27519857]
[1736262891308,3.2078,3536.5,3534.3,17.01232249]
[1736262891497,5.17134323,3535.7,3535.5,40.8]
[1736262891697,3.49071,3535.6,3535.5,40.8]
[1736262891904,0.28291,3535.5,3534.3,0.2832]
[1736262892101,0.28291,3535.5,3533.9,9.06324]
[1736262892102,2.83039745,3534.4,3533.9,0.2832]
[1736262892307,2.83039745,3534.0,3533.9,0.2832]
[1736262892507,2.83039745,3534.0,3533.2,0.2832]
[1736262892800,2.83039745,3533.9,3533.2,3.491]
[1736262893000,3.2078,3534.5,3533.9,6.49322278]
[1736262893405,2.83039745,3534.0,3533.9,6.49322278]
[1736262894108,3.11342745,3534.0,3533.9,6.49322278]
[1736262894310,3.2078,3534.1,3533.1,10.8220379]
[1736262894508,3.2078,3533.2,3532.9,4.3922557]
[1736262894710,3.2078,3534.3,3532.9,4.3922557]
[1736262894905,0.28307,3533.6,3532.9,4.3922557]
[1736262895111,0.28308,3533.4,3532.9,4.3922557]
[1736262895412,3.49091,3533.0,3532.9,4.3922557]
[1736262895713,3.49091,3533.0,3532.6,6.58838355]
[1736262895714,0.28314,3532.7,3532.6,4.51438356]
[1736262895905,0.28317,3532.3,3532.2,8.78451141]
[1736262896105,0.28317,3532.3,3531.8,10.8220379]
[1736262896106,3.2078,3532.3,3531.4,0.2832]
[1736262896408,3.2078,3531.8,3530.6,10.8220379]
[1736262896606,3.49109,3530.8,3530.7,0.05664599]
[1736262897308,3.49109,3530.8,3530.7,40.85664599]
[1736262897508,3.2078,3531.2,3530.7,40.85664599]
[1736262897806,1.41554,3533.1,3530.7,40.85664599]
[1736262897807,0.28323,3531.5,3530.7,40.85664599]
[1736262898004,3.2078,3531.6,3531.0,0.28327]
[1736262898005,3.49103,3531.6,3531.0,0.28327]
[1736262898203,3.2078,3531.6,3531.5,0.28323]
[1736262898502,3.2078,3531.6,3530.7,0.33993599]
[1736262898503,0.28323,3531.5,3530.7,0.33993599]
[1736262898702,3.2078,3531.0,3530.7,0.05664599]
[1736262899103,0.28329,3530.8,3530.7,0.05664599]
[1736262899310,3.2078,3531.0,3529.6,0.2832]
[1736262899611,3.2078,3531.0,3530.3,3.2078]
[1736262899915,0.28329,3530.8,3530.1,41.08334]
[1736262900118,3.2078,3531.0,3530.1,40.8]
[1736262901109,3.2078,3530.2,3529.6,0.05666364]
[1736262901320,0.28338,3529.7,3529.6,0.05666364]
[1736262901821,0.28338,3529.7,3526.6,13.22748673]
[1736262901823,0.28348,3528.5,3527.8,0.28353]
[1736262902116,0.28352,3527.9,3527.7,11.1060379]
[1736262902318,0.28353,3527.8,3527.7,10.8220379]
[1736262903124,0.28353,3527.8,3527.7,10.8170379]
[1736262903317,3.2078,3528.1,3527.7,10.8170379]
[1736262903618,3.2078,3528.5,3527.7,3.0833413]
[1736262903913,3.2078,3528.6,3527.2,5.50118857]
[1736262904113,3.2078,3529.3,3528.5,0.28346]
[1736262904413,3.2078,3528.9,3528.4,0.28347]
[1736262904611,3.2078,3529.5,3528.2,3.2078]
[1736262904820,3.2078,3529.5,3528.5,3.2078]
[1736262905017,3.2078,3529.1,3528.5,3.15096491]
[1736262905216,3.2078,3529.6,3528.3,0.284]
[1736262905412,3.2078,3529.6,3528.4,3.15096491]
[1736262905718,3.2078,3529.2,3528.4,0.28347]
[1736262906014,3.2078,3529.2,3528.4,3.2078]
[1736262906212,3.2078,3528.8,3527.1,3.2078]
[1736262906407,3.2078,3527.7,3527.4,0.284]
[1736262906614,3.2078,3528.1,3527.4,0.284]
[1736262906812,0.70848,3529.6,3528.0,40.8]
[1736262906813,0.28347,3528.6,3528.0,40.8]
[1736262907014,3.2078,3529.2,3528.1,3.2078]
[1736262907216,5.3337,3530.4,3528.5,3.2078]
[1736262907217,3.2078,3530.2,3528.5,3.2078]
[1736262907428,0.28337,3529.8,3528.8,0.28344]
[1736262907617,3.2078,3529.6,3528.3,5.50118857]
[1736262907814,3.2078,3530.0,3528.9,3.17844083]
[1736262908013,3.2078,3529.6,3528.5,3.2078]
[1736262908214,0.28338,3529.7,3528.6,0.28346]
[1736262908411,3.2078,3530.0,3528.5,6.38624083]
[1736262908627,3.2078,3530.0,3529.3,0.2834]
[1736262908920,0.28337,3529.8,3528.9,3.2078]
[1736262909114,3.2078,3530.0,3528.9,3.2078]
[1736262909314,3.2078,3529.2,3528.4,0.284]
[1736262909511,3.2078,3528.7,3527.9,0.284]
[1736262909723,3.2078,3529.1,3528.5,0.28347]
[1736262909925,0.2834,3529.4,3528.4,0.28348]
[1736262910129,3.49116,3529.9,3528.9,0.28344]
[1736262910421,0.70817,3531.1,3528.0,41.50878]
[1736262910422,3.2078,3529.7,3528.5,3.25494057]
[1736262910722,4.851,3532.8,3528.5,3.25494057]
[1736262910723,3.2078,3530.7,3529.6,3.2078]
[1736262910925,3.49105,3531.3,3530.4,3.2078]
[1736262911225,3.49105,3531.3,3529.5,6.20965857]
[1736262911226,3.2078,3531.3,3530.6,3.2078]
[1736262911424,3.2078,3531.3,3529.6,3.40091193]
[1736262911425,3.2078,3531.3,3530.7,40.8]
[1736262911818,3.49109,3530.8,3530.7,40.8]
[1736262912014,3.2078,3531.2,3530.7,40.8]
[1736262912221,0.28329,3530.8,3530.7,40.8]
[1736262912416,3.2078,3531.3,3530.7,40.8]
[1736262912824,3.2078,3530.9,3529.7,2.6417]
[1736262913126,3.91618,3530.1,3528.6,2.9661]
[1736262913320,2.7826,3531.8,3528.7,40.8]
[1736262913321,3.2078,3529.2,3528.7,40.8]
[1736262913517,3.49125,3528.8,3528.7,40.8]
[1736262913720,3.2078,3528.8,3527.5,0.284]
[1736262913926,0.28356,3527.5,3526.8,0.28361]
[1736262914123,3.2078,3527.6,3526.7,0.284]
[1736262914124,0.28356,3527.4,3526.9,40.8]
[1736262914630,0.1441,3527.3,3526.9,40.8]
[1736262914927,0.28359,3527.0,3526.9,40.8]
[1736262915527,0.709,3527.0,3525.8,0.284]
[1736262915728,0.28369,3525.9,3525.2,3.2078]
[1736262915931,3.2078,3526.0,3525.3,0.284]
[1736262916429,3.2078,3526.7,3525.4,2.99540792]
[1736262916625,0.28363,3526.6,3525.7,3.2078]
[1736262916825,3.2078,3526.7,3526.5,40.8]
[1736262917030,1.4707,3527.3,3525.9,3.2078]
[1736262917329,1.4707,3527.3,3526.6,3.2078]
[1736262917730,1.4707,3527.3,3527.2,0.28358]
[1736262917924,3.2078,3529.2,3527.7,5.50118857]
[1736262918227,0.2266,3529.1,3528.8,3.2078]
[1736262918534,3.2078,3530.4,3528.9,5.78518857]
[1736262918725,3.2078,3530.4,3529.0,3.2078]
[1736262918929,3.2078,3529.9,3528.9,5.78518857]
[1736262919130,1.41645,3530.1,3529.1,0.28342]
[1736262919431,1.41645,3530.1,3528.9,0.284]
[1736262919432,1.1331,3530.1,3529.4,3.2078]
[1736262919627,4.3409,3530.1,3528.9,0.284]
[1736262919832,0.28345,3528.8,3528.5,0.284]
[1736262920027,0.28345,3528.8,3527.8,2.90702]
[1736262920028,0.28347,3528.5,3528.0,0.284]
[1736262920223,0.2266,3530.0,3528.0,0.284]
[1736262920224,3.2078,3529.3,3528.0,0.284]
[1736262920529,0.28349,3528.4,3528.0,0.284]
[1736262920834,3.2078,3528.1,3527.6,0.284]
[1736262921033,0.28355,3527.6,3527.0,2.8856]
[1736262921324,0.28348,3528.4,3527.4,3.2078]
[1736262921525,3.2078,3528.1,3527.2,40.8]
[1736262921929,8.23728857,3529.9,3527.2,40.8]
[1736262921930,0.28357,3527.3,3527.2,40.8]
[1736262922230,0.70895,3527.2,3526.2,0.284]
[1736262922423,1.41749,3528.3,3525.3,0.284]
[1736262922424,3.2078,3526.5,3525.3,0.284]
[1736262922621,0.28364,3526.4,3526.3,40.8]
[1736262923228,3.2078,3526.5,3525.3,0.284]
[1736262923428,0.28374,3525.3,3525.0,5.284]
[1736262923632,3.2078,3525.5,3525.0,5.0]
[1736262923934,0.28375,3525.1,3525.0,5.0]
[1736262924130,3.49155,3525.1,3525.0,5.0]
[1736262925633,3.49155,3525.1,3523.9,0.284]
[1736262925634,3.2078,3525.1,3523.9,0.284]
[1736262925831,0.28383,3524.1,3524.0,0.284]
[1736262926027,3.2078,3524.6,3523.1,3.4918]
[1736262926342,1.41855,3525.6,3522.9,0.284]
[1736262926343,0.28392,3523.0,3522.9,0.284]
[1736262926529,3.2078,3523.9,3522.9,5.284]
[1736262926730,3.2078,3524.3,3523.4,3.2078]
[1736262926943,3.2078,3524.3,3523.6,40.8]
[1736262927136,3.2078,3525.5,3524.3,0.28381]
[1736262927337,1.41779,3527.5,3524.4,3.2078]
[1736262927338,3.2078,3526.1,3524.4,3.2078]
[1736262927539,3.2078,3525.7,3524.9,0.28376]
[1736262927833,3.2078,3525.7,3524.5,3.2078]
[1736262928039,3.2078,3525.3,3524.1,2.5947]
[1736262928532,3.2078,3525.3,3524.3,3.2078]
[1736262928739,0.28381,3524.4,3523.7,2.9035]
[1736262928935,0.28384,3523.9,3523.6,40.8]
[1736262929131,3.2078,3524.0,3523.6,40.8]
[1736262929436,3.49161,3524.4,3523.6,40.8]
[1736262929640,2.7036,3525.5,3523.9,3.2078]
[1736262929933,2.7036,3525.5,3523.6,40.8]
[1736262929934,3.2078,3526.4,3525.2,3.2078]
[1736262930138,2.06020644,3528.6,3525.2,3.2078]
[1736262930139,3.2078,3526.8,3525.9,3.2078]
[1736262930339,3.2078,3527.2,3526.5,0.28363]
[1736262930527,3.2078,3527.8,3526.2,3.2078]
[1736262930732,3.2078,3528.4,3526.6,6.00506155]
[1736262930929,0.05668452,3528.3,3527.0,5.50118857]
[1736262931133,3.2078,3527.8,3526.9,3.4914]
[1736262931437,3.2078,3528.2,3527.1,3.07037867]
[1736262931630,0.2267,3527.7,3527.1,3.07037867]
[1736262931837,0.2267,3527.7,3527.0,6.21508586]
[1736262932138,0.2267,3527.7,3526.7,8.521]
[1736262932337,0.2267,3527.7,3526.7,5.3132]
[1736262932338,0.28357,3527.3,3526.7,5.3132]
[1736262932535,0.2267,3527.7,3526.8,40.8]
[1736262932536,0.2836,3526.9,3526.8,40.8]
[1736262932836,3.2078,3527.0,3525.1,5.4284]
[1736262933035,3.2078,3525.3,3523.4,5.50118857]
[1736262933244,5.50118857,3526.8,3524.3,40.8]
[1736262933245,3.2078,3525.1,3524.3,40.8]
[1736262933542,3.2078,3525.2,3524.3,40.8]
[1736262933834,3.2078,3525.5,3524.4,3.09646149]
[1736262934038,3.2078,3525.5,3524.4,3.2078]
[1736262934240,3.2078,3525.5,3524.3,40.8]
[1736262934443,3.2078,3525.5,3524.5,3.38025149]
[1736262934744,3.2078,3525.5,3524.7,3.2078]
[1736262935040,3.2078,3525.1,3524.4,0.284]
[1736262935236,0.2838,3524.5,3524.3,40.8]
[1736262935436,3.2078,3524.5,3524.3,0.05674885]
[1736262935743,0.2838,3524.4,3524.3,8.85e-06]
[1736262936541,3.2078,3525.4,3524.3,8.85e-06]
[1736262936839,3.2078,3525.0,3524.3,8.85e-06]
[1736262937035,3.2078,3524.6,3524.3,8.85e-06]
[1736262937234,3.2078,3525.0,3524.3,8.85e-06]
[1736262937539,3.2078,3525.5,3524.4,0.2838]
[1736262937835,3.2078,3524.6,3524.3,8.85e-06]
[1736262938036,0.2838,3524.4,3524.3,8.85e-06]
[1736262938938,3.2078,3524.6,3524.3,8.85e-06]
[1736262939236,3.2078,3525.5,3524.5,3.2078]
[1736262939436,3.2078,3525.5,3524.3,8.85e-06]